fUSD/lending_fUSD_20240520
["ID","MTS","AMOUNT","RATE_DAILY","PERIOD"]
[327593186,1716246679531,-584.91,0.00039178,6]
[327593187,1716246679540,-500.0,0.00039178,6]
[327593188,1716246679550,-500.0,0.00039178,6]
[327593189,1716246679559,-500.0,0.00039178,2]
[327593190,1716246679568,-500.0,0.00039178,6]
[327593191,1716246679578,-788.86,0.00039178,6]
[327593192,1716246679587,-500.0,0.00039178,6]
[327593193,1716246679597,-500.0,0.00039178,6]
[327593194,1716246679606,-500.0,0.00039178,6]
[327593195,1716246679615,-500.0,0.00039178,6]
[327593196,1716246679624,-1492.34,0.00039178,6]
[327593197,1716246679634,-1912.95,0.00039178,6]
[327593198,1716246679643,-500.0,0.00039178,6]
[327593199,1716246679652,-613.68,0.00039178,6]
[327593200,1716246679661,-612.57,0.00039178,6]
[327593201,1716246679671,-500.0,0.00039178,6]
[327593202,1716246679680,-592.41,0.00039178,6]
[327593203,1716246679689,-500.0,0.00039178,6]
[327593204,1716246679698,-500.0,0.00039178,6]
[327593205,1716246679707,-500.0,0.00039178,6]
[327593206,1716246679716,-926.58,0.00039178,6]
[327593207,1716246679726,-500.0,0.00039178,6]
[327593208,1716246679735,-2000.0,0.00039178,6]
[327593209,1716246679744,-500.0,0.00039178,6]
[327593210,1716246679753,-642.72,0.00039178,6]
[327593211,1716246679762,-500.0,0.00039178,6]
[327593212,1716246679771,-500.0,0.00039178,6]
[327593213,1716246679782,-671.44,0.00039178,6]
[327593214,1716246679792,-550.15556346,0.00039178,6]
[327593215,1716246679802,-500.0,0.00039178,6]
[327593216,1716246679811,-500.0,0.00039178,6]
[327593217,1716246679820,-500.0,0.00039178,6]
[327593218,1716246679829,-214.46868395,0.00039178,6]
[327593219,1716246679839,-658.12,0.00039178,6]
[327593220,1716246679848,-500.0,0.00039178,6]
[327593221,1716246679858,-500.0,0.00039178,6]
[327593222,1716246679867,-500.0,0.00039178,6]
[327593223,1716246679877,-679.55,0.00039178,6]
[327593224,1716246679886,-500.0,0.00039178,2]
[327593225,1716246679895,-529.12126727,0.00039178,6]
[327593226,1716246679905,-500.0,0.00039178,6]
[327593227,1716246679914,-586.03,0.00039178,6]
[327593228,1716246679924,-548.26,0.00039178,6]
[327593229,1716246679933,-500.0,0.00039178,6]
[327593230,1716246679942,-500.0,0.00039178,6]
[327593231,1716246679951,-500.0,0.00039178,6]
[327593232,1716246679960,-1512.26,0.00039178,6]
[327593233,1716246679969,-922.44,0.00039178,6]
[327593234,1716246679979,-500.0,0.00039178,6]
[327593235,1716246679988,-500.0,0.00039178,6]
[327593236,1716246679997,-1487.5,0.00039178,6]
[327593237,1716246680007,-1445.67,0.00039178,6]
[327593238,1716246680016,-648.0,0.00039178,6]
[327593239,1716246680025,-500.0,0.00039178,2]
[327593240,1716246680037,-606.0,0.00039178,6]
[327593241,1716246680047,-1353.27,0.00039178,6]
[327593242,1716246680056,-500.0,0.00039178,6]
[327593243,1716246680065,-500.0,0.00039178,6]
[327593244,1716246680075,-2220.61,0.00039178,6]
[327593245,1716246680084,-869.36,0.00039178,6]
[327593246,1716246680093,-500.0,0.00039178,6]
[327593247,1716246680102,-500.0,0.00039178,6]
[327593248,1716246680112,-810.05,0.00039178,6]
[327593249,1716246680121,-543.21,0.00039178,6]
[327593250,1716246680130,-500.0,0.00039178,6]
[327593251,1716246680140,-500.0,0.00039178,6]
[327593252,1716246680150,-500.0,0.00039178,6]
[327593253,1716246680159,-1339.38,0.00039178,6]
[327593254,1716246680168,-500.0,0.00039178,6]
[327593255,1716246680178,-511.34,0.00039178,6]
[327593256,1716246680188,-500.0,0.00039178,6]
[327593257,1716246680197,-524.18,0.00039178,6]
[327593258,1716246680206,-500.0,0.00039178,6]
[327593259,1716246680216,-500.0,0.00039178,6]
[327593260,1716246680224,-623.68,0.00039178,6]
[327593261,1716246680234,-621.04,0.00039178,6]
[327593262,1716246680243,-874.24,0.00039178,6]
[327593263,1716246680252,-500.0,0.00039178,6]
[327593264,1716246680262,-589.55163014,0.00039178,6]
[327593265,1716246680276,-608.02,0.00039178,6]
[327593266,1716246680287,-500.0,0.00039178,6]
[327593267,1716246680296,-836.02,0.00039178,6]
[327593268,1716246680305,-500.0,0.00039178,6]
[327593269,1716246680315,-500.0,0.00039178,6]
[327593270,1716246680324,-500.0,0.00039178,6]
[327593271,1716246680334,-1078.46,0.00039178,6]
[327593272,1716246680343,-500.0,0.00039178,6]
[327593273,1716246680355,-780.25,0.00039178,6]
[327593274,1716246680365,-500.0,0.00039178,6]
[327593275,1716246680375,-1417.4,0.00039178,6]
[327593276,1716246680384,-500.0,0.00039178,6]
[327593277,1716246680395,-820.58,0.00039178,6]
[327593278,1716246680404,-500.0,0.00039178,6]
[327593279,1716246680413,-500.0,0.00039178,6]
[327593280,1716246680423,-500.0,0.00039178,6]
[327593281,1716246680432,-500.0,0.00039178,6]
[327593282,1716246680441,-500.0,0.00039178,6]
[327593283,1716246680451,-515.32,0.00039178,6]
[327593284,1716246680460,-1256.05,0.00039178,6]
[327593285,1716246680469,-1339.11,0.00039178,6]
[327593286,1716246680478,-516.67,0.00039178,6]
[327593287,1716246680487,-504.52,0.00039178,6]
[327593288,1716246680496,-500.0,0.00039178,6]
[327593289,1716246680505,-500.0,0.00039178,6]
[327593290,1716246680514,-500.0,0.00039178,6]
[327593291,1716246680524,-500.0,0.00039178,6]
[327593292,1716246680533,-500.0,0.00039178,6]
[327593293,1716246680543,-528.0,0.00039178,6]
[327593294,1716246680552,-1545.28,0.00039178,6]
[327593295,1716246680562,-500.0,0.00039178,6]
[327593296,1716246680571,-500.0,0.00039178,6]
[327593297,1716246680580,-500.0,0.00039178,6]
[327593298,1716246680589,-500.0,0.00039178,6]
[327593299,1716246680598,-500.0,0.00039178,6]
[327593300,1716246680607,-666.77,0.00039178,6]
[327593301,1716246680616,-542.27,0.00039178,6]
[327593302,1716246680625,-1009.65,0.00039178,6]
[327593303,1716246680635,-500.0,0.00039178,6]
[327593304,1716246680644,-500.0,0.00039178,6]
[327593305,1716246680653,-1368.48,0.00039178,6]
[327593306,1716246680662,-500.0,0.00039178,6]
[327593307,1716246680671,-548.01,0.00039178,6]
[327593308,1716246680680,-500.0,0.00039178,6]
[327593309,1716246680689,-695.19,0.00039178,6]
[327593310,1716246680699,-590.63,0.00039178,6]
[327593311,1716246680708,-500.0,0.00039178,6]
[327593312,1716246680717,-545.77,0.00039178,6]
[327593313,1716246680726,-593.36,0.00039178,6]
[327593314,1716246680735,-1871.27,0.00039178,6]
[327593315,1716246680744,-1000.0,0.00039178,6]
[327593316,1716246680754,-809.62,0.00039178,6]
[327593317,1716246680763,-2843.07,0.00039178,6]
[327593318,1716246680773,-680.07,0.00039178,6]
[327593319,1716246680783,-610.86,0.00039178,6]
[327593320,1716246680792,-500.0,0.00039178,6]
[327593321,1716246680802,-500.0,0.00039178,6]
[327593322,1716246680812,-874.07,0.00039178,6]
[327593323,1716246680821,-500.0,0.00039178,6]
[327593324,1716246680830,-500.0,0.00039178,6]
[327593325,1716246680840,-500.0,0.00039178,6]
[327593326,1716246680849,-264.59938756,0.00039178,6]
[327593327,1716246680858,-965.17,0.00039178,6]
[327593328,1716246680867,-500.0,0.00039178,6]
[327593329,1716246680876,-500.0,0.00039178,6]
[327593330,1716246680885,-500.0,0.00039178,6]
[327593331,1716246680894,-1657.66,0.00039178,6]
[327593332,1716246680903,-1928.83,0.00039178,6]
[327593333,1716246680912,-500.0,0.00039178,6]
[327593334,1716246680920,-500.0,0.00039178,6]
[327593335,1716246680930,-512.56,0.00039178,6]
[327593336,1716246680939,-500.0,0.00039178,6]
[327593337,1716246680948,-713.35,0.00039178,6]
[327593338,1716246680957,-500.0,0.00039178,6]
[327593339,1716246680968,-905.25,0.00039178,6]
[327593340,1716246680978,-500.0,0.00039178,6]
[327593341,1716246680988,-500.0,0.00039178,6]
[327593342,1716246680998,-655.02,0.00039178,6]
[327593343,1716246681007,-2589.9,0.00039178,6]
[327593344,1716246681017,-750.78,0.00039178,6]
[327593345,1716246681026,-535.28,0.00039178,6]
[327593346,1716246681037,-627.03,0.00039178,6]
[327593347,1716246681047,-1029.48,0.00039178,6]
[327593348,1716246681056,-500.0,0.00039178,6]
[327593349,1716246681066,-500.0,0.00039178,6]
[327593350,1716246681075,-381.88102848,0.00039178,6]
[327593351,1716246681085,-500.0,0.00039178,2]
[327593352,1716246681095,-500.0,0.00039178,6]
[327593353,1716246681104,-500.0,0.00039178,6]
[327593354,1716246681114,-500.0,0.00039178,6]
[327593355,1716246681124,-500.0,0.00039178,6]
[327593356,1716246681133,-500.0,0.00039178,6]
[327593357,1716246681143,-1245.12,0.00039178,6]
[327593358,1716246681152,-2349.36,0.00039178,6]
[327593359,1716246681161,-500.0,0.00039178,6]
[327593360,1716246681171,-524.15,0.00039178,6]
[327593361,1716246681180,-500.0,0.00039178,6]
[327593362,1716246681190,-771.31,0.00039178,6]
[327593363,1716246681198,-155.61,0.00039178,6]
[327593364,1716246681208,-1922.1,0.00039178,6]
[327593365,1716246681217,-500.0,0.00039178,6]
[327593366,1716246681226,-500.0,0.00039178,6]
[327593367,1716246681235,-730.92,0.00039178,6]
[327593368,1716246681244,-500.0,0.00039178,6]
[327593369,1716246681254,-500.0,0.00039178,6]
[327593370,1716246681263,-500.0,0.00039178,6]
[327593371,1716246681274,-500.0,0.00039178,6]
[327593372,1716246681287,-518.96,0.00039178,6]
[327593373,1716246681297,-500.0,0.00039178,6]
[327593374,1716246681306,-845.4,0.00039178,6]
[327593375,1716246681315,-500.0,0.00039178,6]
[327593376,1716246681326,-500.0,0.00039178,6]
[327593377,1716246681335,-500.0,0.00039178,6]
[327593378,1716246681345,-500.0,0.00039178,6]
[327593379,1716246681356,-500.0,0.00039178,6]
[327593380,1716246681366,-943.0,0.00039178,6]
[327593381,1716246681376,-500.0,0.00039178,6]
[327593382,1716246681385,-2029.67,0.00039178,6]
[327593383,1716246681395,-500.0,0.00039178,6]
[327593384,1716246681404,-500.0,0.00039178,6]
[327593385,1716246681414,-1632.55,0.00039178,6]
[327593386,1716246681423,-993.96,0.00039178,6]
[327593387,1716246681433,-500.0,0.00039178,6]
[327593388,1716246681442,-672.55,0.00039178,6]
[327593389,1716246681453,-2697.76,0.00039178,6]
[327593390,1716246681463,-500.0,0.00039178,6]
[327593391,1716246681473,-643.95458026,0.00039178,6]
[327593392,1716246681482,-522.63101028,0.00039178,6]
[327593393,1716246681491,-500.0,0.00039178,6]
[327593394,1716246681501,-2579.25,0.00039178,6]
[327593395,1716246681510,-500.0,0.00039178,6]
[327593396,1716246681520,-500.0,0.00039178,6]
[327593397,1716246681529,-753.5,0.00039178,6]
[327593398,1716246681540,-500.0,0.00039178,6]
[327593399,1716246681549,-556.27,0.00039178,6]
[327593400,1716246681559,-746.05,0.00039178,6]
[327593401,1716246681568,-500.0,0.00039178,6]
[327593402,1716246681577,-2961.76,0.00039178,6]
[327593403,1716246681586,-503.5,0.00039178,6]
[327593404,1716246681595,-927.4,0.00039178,6]
[327593405,1716246681605,-500.0,0.00039178,6]
[327593406,1716246681614,-1132.12,0.00039178,6]
[327593407,1716246681623,-500.0,0.00039178,6]
[327593408,1716246681632,-2461.65,0.00039178,6]
[327593409,1716246681642,-500.0,0.00039178,6]
[327593410,1716246681651,-572.93,0.00039178,6]
[327593411,1716246681660,-500.0,0.00039178,6]
[327593412,1716246681669,-758.78,0.00039178,6]
[327593413,1716246681679,-941.32,0.00039178,6]
[327593414,1716246681688,-647.92,0.00039178,6]
[327593415,1716246681697,-754.24,0.00039178,6]
[327593416,1716246681706,-927.56,0.00039178,6]
[327593417,1716246681715,-985.81,0.00039178,6]
[327593418,1716246681725,-500.0,0.00039178,6]
[327593419,1716246681734,-500.0,0.00039178,6]
[327593420,1716246681743,-500.0,0.00039178,6]
[327593421,1716246681752,-500.0,0.00039178,6]
[327593422,1716246681762,-500.0,0.00039178,6]
[327593423,1716246681771,-1104.02,0.00039178,6]
[327593424,1716246681780,-500.0,0.00039178,6]
[327593425,1716246681790,-500.0,0.00039178,6]
[327593426,1716246681799,-500.0,0.00039178,6]
[327593427,1716246681809,-500.0,0.00039178,6]
[327593428,1716246681819,-792.6,0.00039178,6]
[327593429,1716246681828,-500.0,0.00039178,6]
[327593430,1716246681838,-500.0,0.00039178,6]
[327593431,1716246681847,-500.0,0.00039178,6]
[327593432,1716246681857,-500.0,0.00039178,6]
[327593433,1716246681866,-500.0,0.00039178,6]
[327593434,1716246681875,-634.79,0.00039178,6]
[327593435,1716246681884,-831.31,0.00039178,6]
[327593436,1716246681894,-1259.65,0.00039178,6]
[327593437,1716246681903,-736.73,0.00039178,6]
[327593438,1716246681912,-1076.13,0.00039178,6]
[327593439,1716246681921,-500.0,0.00039178,6]
[327593440,1716246681931,-500.0,0.00039178,6]
[327593441,1716246681941,-500.0,0.00039178,6]
[327593442,1716246681950,-708.05,0.00039178,6]
[327593443,1716246681959,-500.0,0.00039178,6]
[327593444,1716246681969,-799.55,0.00039178,6]
[327593445,1716246681978,-600.20013497,0.00039178,6]
[327593446,1716246681988,-500.0,0.00039178,6]
[327593447,1716246681997,-525.88,0.00039178,6]
[327593448,1716246682006,-500.0,0.00039178,6]
[327593449,1716246682015,-500.0,0.00039178,6]
[327593450,1716246682025,-557.25,0.00039178,6]
[327593451,1716246682035,-1539.84,0.00039178,6]
[327593452,1716246682046,-895.98,0.00039178,6]
[327593453,1716246682055,-1421.85,0.00039178,6]
[327593454,1716246682065,-662.61,0.00039178,6]
[327593455,1716246682074,-1435.77,0.00039178,6]
[327593456,1716246682084,-2414.62,0.00039178,6]
[327593457,1716246682093,-500.0,0.00039178,6]
[327593458,1716246682103,-879.69,0.00039178,6]
[327593459,1716246682112,-951.29,0.00039178,6]
[327593460,1716246682122,-604.04,0.00039178,6]
[327593461,1716246682132,-500.0,0.00039178,6]
[327593462,1716246682142,-500.0,0.00039178,6]
[327593463,1716246682152,-3136.74,0.00039178,6]
[327593464,1716246682161,-1442.9,0.00039178,6]
[327593465,1716246682171,-500.0,0.00039178,6]
[327593466,1716246682181,-1961.17,0.00039178,6]
[327593467,1716246682191,-791.88,0.00039178,6]
[327593468,1716246682200,-894.39,0.00039178,6]
[327593469,1716246682211,-500.0,0.00039178,6]
[327593470,1716246682221,-500.0,0.00039178,6]
[327593471,1716246682231,-725.42,0.00039178,6]
[327593472,1716246682241,-500.0,0.00039178,6]
[327593473,1716246682250,-196.66837734,0.00039178,6]
[327593474,1716246682260,-1938.62,0.00039178,6]
[327593475,1716246682275,-4036.03,0.00039178,6]
[327593476,1716246682286,-1362.4,0.00039178,6]
[327593477,1716246682295,-780.48,0.00039178,6]
[327593478,1716246682305,-500.0,0.00039178,6]
[327593479,1716246682316,-500.0,0.00039178,6]
[327593480,1716246682326,-3051.63,0.00039178,6]
[327593481,1716246682335,-807.71,0.00039178,6]
[327593482,1716246682346,-500.0,0.00039178,6]
[327593483,1716246682355,-2414.61,0.00039178,6]
[327593484,1716246682365,-1130.78,0.00039178,6]
[327593485,1716246682375,-500.0,0.00039178,6]
[327593486,1716246682384,-695.86,0.00039178,6]
[327593487,1716246682393,-12639.53,0.00039178,6]
[327593488,1716246682402,-2271.07,0.00039178,6]
[327593489,1716246682411,-1137.07,0.00039178,6]
[327593490,1716246682421,-500.0,0.00039178,6]
[327593491,1716246682431,-574.89,0.00039178,6]
[327593492,1716246682440,-718.61,0.00039178,6]
[327593493,1716246682449,-500.0,0.00039178,6]
[327593494,1716246682459,-500.0,0.00039178,6]
[327593495,1716246682468,-2685.19,0.00039178,6]
[327593496,1716246682478,-963.56,0.00039178,6]
[327593497,1716246682487,-611.78,0.00039178,6]
[327593498,1716246682496,-500.0,0.00039178,6]
[327593499,1716246682506,-500.0,0.00039178,6]
[327593500,1716246682515,-500.0,0.00039178,6]
[327593501,1716246682524,-971.36,0.00039178,6]
[327593502,1716246682534,-947.87,0.00039178,6]
[327593503,1716246682543,-500.0,0.00039178,6]
[327593504,1716246682552,-571.47,0.00039178,6]
[327593505,1716246682562,-500.0,0.00039178,6]
[327593506,1716246682758,-944.79,0.00039178,6]
[327593507,1716246682767,-500.0,0.00039178,6]
[327593508,1716246682776,-500.0,0.00039178,6]
[327593509,1716246682786,-1067.43,0.00039178,6]
[327593510,1716246682795,-500.0,0.00039178,6]
[327593511,1716246682804,-562.5,0.00039178,6]
[327593512,1716246682813,-500.0,0.00039178,6]
[327593513,1716246682823,-683.74,0.00039178,6]
[327593514,1716246682832,-500.0,0.00039178,6]
[327593515,1716246682841,-1724.29,0.00039178,6]
[327593516,1716246682851,-923.34,0.00039178,6]
[327593517,1716246682860,-500.0,0.00039178,6]
[327593518,1716246682870,-500.0,0.00039178,6]
[327593519,1716246682879,-779.79,0.00039178,6]
[327593520,1716246682889,-502.0,0.00039178,6]
[327593521,1716246682898,-1525.72,0.00039178,6]
[327593522,1716246682907,-2922.18,0.00039178,6]
[327593523,1716246682916,-500.0,0.00039178,6]
[327593524,1716246682925,-1161.04,0.00039178,6]
[327593525,1716246682935,-222.04339368,0.00039178,6]
[327593526,1716246682944,-500.0,0.00039178,6]
[327593527,1716246682953,-524.13,0.00039178,6]
[327593528,1716246682962,-545.77,0.00039178,6]
[327593529,1716246682971,-500.0,0.00039178,6]
[327593530,1716246682981,-630.03,0.00039178,6]
[327593531,1716246682990,-861.32,0.00039178,6]
[327593532,1716246683000,-500.0,0.00039178,6]
[327593533,1716246683009,-500.0,0.00039178,6]
[327593534,1716246683019,-2128.47,0.00039178,6]
[327593535,1716246683027,-500.0,0.00039178,6]
[327593536,1716246683036,-500.0,0.00039178,6]
[327593537,1716246683045,-2220.7,0.00039178,6]
[327593538,1716246683054,-914.66,0.00039178,6]
[327593539,1716246683063,-500.0,0.00039178,6]
[327593540,1716246683073,-911.76,0.00039178,6]
[327593541,1716246683083,-500.0,0.00039178,6]
[327593542,1716246683092,-500.0,0.00039178,6]
[327593543,1716246683102,-500.0,0.00039178,6]
[327593544,1716246683111,-500.0,0.00039178,6]
[327593545,1716246683121,-14835.39,0.00039178,6]
[327593546,1716246683131,-532.67087486,0.00039178,6]
[327593547,1716246683141,-500.0,0.00039178,6]
[327593548,1716246683151,-1136.76,0.00039178,6]
[327593549,1716246683160,-500.0,0.00039178,6]
[327593550,1716246683170,-1076.64,0.00039178,6]
[327593551,1716246683179,-500.0,0.00039178,6]
[327593552,1716246683189,-500.0,0.00039178,6]
[327593553,1716246683198,-300.0,0.00039178,6]
[327593554,1716246683208,-500.0,0.00039178,6]
[327593555,1716246683219,-1632.26,0.00039178,6]
[327593556,1716246683228,-500.0,0.00039178,6]
[327593557,1716246683237,-500.0,0.00039178,6]
[327593558,1716246683247,-3218.12,0.00039178,6]
[327593559,1716246683257,-2995.28,0.00039178,6]
[327593560,1716246683267,-500.0,0.00039178,6]
[327593561,1716246683279,-500.0,0.00039178,6]
[327593562,1716246683289,-582.73,0.00039178,6]
[327593563,1716246683299,-500.0,0.00039178,6]
[327593564,1716246683309,-841.3,0.00039178,6]
[327593565,1716246683320,-500.0,0.00039178,6]
[327593566,1716246683330,-4565.77,0.00039178,6]
[327593567,1716246683339,-500.0,0.00039178,6]
[327593568,1716246683349,-1994.33,0.00039178,6]
[327593569,1716246683361,-976.12,0.00039178,6]
[327593570,1716246683371,-584.28,0.00039178,6]
[327593571,1716246683381,-597.82,0.00039178,6]
[327593572,1716246683391,-1108.56,0.00039178,6]
[327593573,1716246683400,-2271.52,0.00039178,6]
[327593574,1716246683410,-500.0,0.00039178,6]
[327593575,1716246683419,-1570.11,0.00039178,6]
[327593576,1716246683429,-534.04,0.00039178,6]
[327593577,1716246683438,-500.0,0.00039178,6]
[327593578,1716246683448,-2261.65,0.00039178,6]
[327593579,1716246683457,-792.28,0.00039178,6]
[327593580,1716246683467,-215.44744212,0.00039178,6]
[327593581,1716246683476,-1993.23,0.00039178,6]
[327593582,1716246683485,-500.0,0.00039178,6]
[327593583,1716246683495,-500.0,0.00039178,6]
[327593584,1716246683505,-500.0,0.00039178,6]
[327593585,1716246683515,-500.0,0.00039178,6]
[327593586,1716246683524,-1301.28,0.00039178,6]
[327593587,1716246683535,-500.0,0.00039178,6]
[327593588,1716246683544,-3748.37,0.00039178,6]
[327593589,1716246683552,-500.0,0.00039178,6]
[327593590,1716246683563,-765.75,0.00039178,6]
[327593591,1716246683572,-1266.67,0.00039178,6]
[327593592,1716246683581,-676.8,0.00039178,6]
[327593593,1716246683591,-500.0,0.00039178,6]
[327593594,1716246683601,-500.0,0.00039178,6]
[327593595,1716246683610,-491.77484603,0.00039178,6]
[327593596,1716246683619,-559.3405507,0.00039178,6]
[327593597,1716246683629,-4952.35,0.00039178,6]
[327593598,1716246683638,-500.0,0.00039178,6]
[327593599,1716246683647,-500.0,0.00039178,6]
[327593600,1716246683657,-536.36,0.00039178,6]
[327593601,1716246683666,-500.58,0.00039178,6]
[327593602,1716246683675,-590.29,0.00039178,6]
[327593603,1716246683685,-1182.23,0.00039178,6]
[327593604,1716246683694,-1508.14,0.00039178,6]
[327593605,1716246683703,-1300.62,0.00039178,6]
[327593606,1716246683712,-2911.32,0.00039178,6]
[327593607,1716246683722,-500.0,0.00039178,6]
[327593608,1716246683731,-500.0,0.00039178,6]
[327593609,1716246683741,-1284.66,0.00039178,6]
[327593610,1716246683750,-2262.09,0.00039178,6]
[327593611,1716246683759,-2061.94,0.00039178,6]
[327593612,1716246683769,-500.0,0.00039178,6]
[327593613,1716246683778,-500.0,0.00039178,6]
[327593614,1716246683789,-459.82,0.00039178,6]
[327593615,1716246683798,-500.0,0.00039178,6]
[327593616,1716246683807,-500.0,0.00039178,6]
[327593617,1716246683818,-1603.66,0.00039178,6]
[327593618,1716246683828,-294.2,0.00039178,6]
[327593619,1716246683837,-500.0,0.00039178,6]
[327593620,1716246683846,-724.94,0.00039178,6]
[327593621,1716246683856,-910.42,0.00039178,6]
[327593622,1716246683865,-2658.61,0.00039178,6]
[327593623,1716246683875,-2717.97,0.00039178,6]
[327593624,1716246683884,-560.38,0.00039178,6]
[327593625,1716246683894,-500.0,0.00039178,6]
[327593626,1716246683903,-500.0,0.00039178,6]
[327593627,1716246683912,-642.93,0.00039178,6]
[327593628,1716246683922,-500.0,0.00039178,6]
[327593629,1716246683931,-500.0,0.00039178,6]
[327593630,1716246683940,-500.0,0.00039178,6]
[327593631,1716246683949,-585.08,0.00039178,6]
[327593632,1716246683958,-1173.96,0.00039178,6]
[327593633,1716246683968,-11507.31,0.00039178,6]
[327593634,1716246683976,-507.93,0.00039178,6]
[327593635,1716246683986,-1614.17,0.00039178,6]
[327593636,1716246683995,-2080.1,0.00039178,6]
[327593637,1716246684004,-2750.87,0.00039178,6]
[327593638,1716246684014,-1543.41,0.00039178,6]
[327593639,1716246684023,-500.0,0.00039178,6]
[327593640,1716246684032,-500.0,0.00039178,6]
[327593641,1716246684044,-500.0,0.00039178,6]
[327593642,1716246684053,-899.29,0.00039178,6]
[327593643,1716246684063,-500.0,0.00039178,6]
[327593644,1716246684072,-788.25,0.00039178,6]
[327593645,1716246684082,-544.47,0.00039178,6]
[327593646,1716246684091,-616.96,0.00039178,6]
[327593647,1716246684101,-574.31336433,0.00039178,6]
[327593648,1716246684111,-31050.72,0.00039178,6]
[327593649,1716246684120,-4184.73,0.00039178,6]
[327593650,1716246684130,-7122.67,0.00039178,6]
[327593651,1716246684139,-4614.9,0.00039178,6]
[327593652,1716246684149,-500.0,0.00039178,6]
[327593653,1716246684159,-500.0,0.00039178,6]
[327593654,1716246684168,-5543.31,0.00039178,6]
[327593655,1716246684178,-1683.02,0.00039178,6]
[327593656,1716246684189,-500.0,0.00039178,6]
[327593657,1716246684199,-500.0,0.00039178,6]
[327593658,1716246684208,-1595.19,0.00039178,6]
[327593659,1716246684218,-500.0,0.00039178,6]
[327593660,1716246684227,-6630.33,0.00039178,6]
[327593661,1716246684237,-1219.42,0.00039178,6]
[327593662,1716246684246,-500.0,0.00039178,6]
[327593663,1716246684256,-2891.57,0.00039178,6]
[327593664,1716246684267,-500.0,0.00039178,6]
[327593665,1716246684279,-1113.18,0.00039178,6]
[327593666,1716246684289,-2085.53,0.00039178,6]
[327593667,1716246684299,-2048.08,0.00039178,6]
[327593668,1716246684311,-500.0,0.00039178,6]
[327593669,1716246684320,-500.0,0.00039178,6]
[327593670,1716246684330,-1299.94,0.00039178,6]
[327593671,1716246684342,-1272.93,0.00039178,6]
[327593672,1716246684354,-632.26,0.00039178,6]
[327593673,1716246684364,-2573.28,0.00039178,6]
[327593674,1716246684374,-500.0,0.00039178,6]
[327593675,1716246684384,-2405.47,0.00039178,6]
[327593676,1716246684393,-500.0,0.00039178,6]
[327593677,1716246684403,-500.0,0.00039178,6]
[327593678,1716246684412,-2338.09,0.00039178,6]
[327593679,1716246684421,-1007.81,0.00039178,6]
[327593680,1716246684430,-2108.8,0.00039178,6]
[327593681,1716246684440,-520.24,0.00039178,6]
[327593682,1716246684449,-500.0,0.00039178,6]
[327593683,1716246684459,-319.5737346,0.00039178,6]
[327593684,1716246684468,-1893.27,0.00039178,6]
[327593685,1716246684478,-734.1,0.00039178,6]